Cogmind - Beta 15 @@@ ROGUE MODE // 2025.08.15 @ 23:04:16 Player: Waste Result: Destroyed by H-55 Commando with Gauss Rifle Performance ------------- Evolutions (0) 0 Regions Visited (2) 400 Robots Destroyed (9) 45 Value Destroyed (375) 375 Prototype IDs (0) 0 Alien Tech Used (0) 0 Bonus (0) 0 TOTAL SCORE: 820 Bonus ------- None Cogmind --------- Core Integrity 0/250 Matter 290/300 Energy 100/250 System Corruption 3% Temperature Cool (0) Movement Treading (250) Ox1 Location -10/Subcaves Parts ------- > --- POWER (1) -------- Ion Engine > --- PROPULSION (2) --- Light Treads Spiked Treads > --- UTILITY (2) ------ Light Humpback > --- WEAPON (2) ------- Riot Gun Subdweller Machine Gun > --- INVENTORY (25) --- Light Ion Engine Subdweller Power Source Light Treads Aluminum Leg Aluminum Leg Aluminum Leg Aluminum Leg Aluminum Leg Aluminum Leg Cargo Legs Subdweller Monowheel Subdweller Monowheel Subdweller Monowheel Improved Heat Sink Subdweller Optics Makeshift Thermal Plating Medium Laser Salvaging Laser Light Assault Rifle Subdweller Machine Gun Barrage Gun Multitool Peak State ------------ > --- POWER ------------ Ion Engine > --- PROPULSION ------- Light Treads Spiked Treads > --- UTILITY ---------- Light Humpback > --- WEAPON ----------- Subdweller Machine Gun Barrage Gun > --- INVENTORY -------- Ion Engine Light Ion Engine Subdweller Power Source Light Treads Aluminum Leg Aluminum Leg Aluminum Leg Aluminum Leg Aluminum Leg Aluminum Leg Cargo Legs Subdweller Monowheel Subdweller Monowheel Subdweller Monowheel Improved Heat Sink Subdweller Optics Makeshift Thermal Plating Riot Gun Medium Laser Salvaging Laser Assault Rifle Light Assault Rifle Subdweller Machine Gun Multitool [Rating: 16] Favorites ----------- Power Ion Engine Engine Ion Engine Propulsion Light Treads Treads Light Treads Leg Aluminum Leg Utility Light Humpback Storage Light Humpback Weapon Subdweller Machine Gun Energy Gun Riot Gun Energy Cannon Subdweller Beam Cannon Ballistic Gun Subdweller Machine Gun Build | -11 -10 -10 ------- Run | Yrd Mat Sub Slots Evolved . | . . . Power . | . . . Propulsion . | . . . Utility . | . . . Weapon . | . . . Parts Attached 11 | . . 11 Power 1 | . . 1 Engine 1 | . . 1 Core . | . . . Reactor . | . . . Propulsion 3 | . . 3 Treads 3 | . . 3 Leg . | . . . Wheel . | . . . Hover . | . . . Flight . | . . . Utility 1 | . . 1 Device . | . . . Storage 1 | . . 1 Processor . | . . . Hackware . | . . . Protection . | . . . Artifact . | . . . Weapon 6 | . . 6 Energy Gun 1 | . . 1 Energy Cannon 1 | . . 1 Ballistic Gun 4 | . . 4 Ballistic Cannon . | . . . Launcher . | . . . Special Weapon . | . . . Impact Weapon . | . . . Slashing Weapon . | . . . Piercing Weapon . | . . . Special Melee Weapon . | . . . Unidentified Prototypes . | . . . Parts Lost 3 | . . 3 Power 1 | . . 1 Propulsion . | . . . Utility . | . . . Weapon 2 | . . 2 Highest Loss Streak 2 | . . 2 To Critical Strikes . | . . . Average Backups 20 | . 6 21 Power 2 | . 1 2 Propulsion 8 | . 4 9 Utility 2 | . . 2 Weapon 5 | . 1 5 Tool/Special . | . . . Unused Backups 27 | . 6 21 Power 4 | . 1 3 Propulsion 12 | . 2 10 Utility 5 | . 1 4 Weapon 5 | . 2 3 Tool/Special 1 | . . 1 Average Slot Usage (%) 84 | . 85 84 Engine 13 | . 14 13 Treads 24 | . . 25 Leg 3 | . 28 2 Storage 14 | . 14 14 Energy Cannon 7 | . . 7 Ballistic Gun 20 | . 28 20 Peak Build Rating 16 | . 6 16 Average Rating 12 | . 6 12 On Entrance 6 | 6 6 6 Naked Turns . | . . . Heaviest Build 57 | 13 13 57 Greatest Support 40 | 20 20 40 Greatest Overweight (x) 1 | . . 1 Average Overweight (x) . | . . . Largest Inventory Capacity 25 | . 8 25 Average Capacity 23 | . 8 23 Most Carried 25 | . 6 25 Average Carried 21 | . 6 21 Final Capacity 25 | 8 8 25 Final Carried 23 | 6 6 23 Class Distribution -------------------- 100% | Mutant Dominant Class ---------------- Mutant | -10/Materials Mutant | -10/Subcaves Resources | -11 -10 -10 ----------- Run | Yrd Mat Sub Matter Collected 421 | 200 . 221 Remotely . | . . . Salvage Created 360 | . . 360 Parts 25 | . . 25 Haulers Intercepted . | . . . Recyclers Shooed . | . . . Parts Field Recycled . | . . . Retrieved Matter . | . . . Parts Self-Destructed 22 | . . 22 Prevented . | . . . Kills | -11 -10 -10 ------- Run | Yrd Mat Sub Combat Hostiles Destroyed 9 | . . 9 Guns 6 | . . 6 Cannons 3 | . . 3 Classes Destroyed 2 | . . 2 Hunter 1 | . . 1 Subdweller 8 | . . 8 Best Kill Streak 3 | . . 3 Combat Bots Only 3 | . . 3 Max Kills in Single Turn 1 | . . 1 Gunslinging . | . . . Exploded . | . . . Melee . | . . . Uniques/NPCs Destroyed . | . . . Combat | -11 -10 -10 -------- Run | Yrd Mat Sub Hostile Shots Fired 83 | . . 83 Missed 24 | . . 24 Hits 59 | . . 59 Projectile 59 | . . 59 Critical Strikes 1 | . . 1 Damage Taken 898 | . . 898 Core 262 | . . 262 Absorbed by Shields . | . . . Core Remaining (%) 100 | 100 . . Volleys Fired 39 | . 2 37 Largest 2 | . 2 2 Hottest 110 | . 40 110 Shots Fired 74 | . 4 70 Gun 59 | . 4 55 Cannon 15 | . . 15 Launcher . | . . . Special . | . . . Kinetic 57 | . 4 53 Thermal 15 | . . 15 Explosive . | . . . Electromagnetic 2 | . . 2 Robot Hit Streak 10 | . 1 10 Robot Miss Streak 3 | . 3 2 Penetration Max . | . . . Secondary Targets . | . . . Shots Hit Robots 37 | . 1 36 Core Hits 12 | . . 12 Critical Kills . | . . . Critical Parts Destroyed . | . . . Critical Strikes . | . . . Melee Attacks . | . . . Impact . | . . . Slashing . | . . . Piercing . | . . . Sneak Attacks . | . . . Combat Hostiles . | . . . Follow-up Attacks . | . . . Damage Inflicted 845 | . 6 839 Guns 588 | . 6 582 Cannons 213 | . . 213 Explosions 44 | . . 44 Melee . | . . . Ramming . | . . . Kinetic 536 | . 6 530 Thermal 257 | . . 257 Explosive . | . . . Electromagnetic 52 | . . 52 Impact . | . . . Slashing . | . . . Piercing . | . . . Highest Corruption 3 | . . 3 Average Corruption 2 | . . 2 Corruption Purged . | . . . Corruption Blocked . | . . . Effects 1 | . . 1 Matter Fused 1 | . . 1 Overload Shots . | . . . Overflow Damage . | . . . Projectiles . | . . . Explosions . | . . . Melee . | . . . Knockbacks . | . . . Impact . | . . . Kinetic . | . . . Secondary . | . . . Self-Inflicted Damage 33 | . . 33 Shots 1 | . . 1 Rammed . | . . . Targets Rammed . | . . . Kicked . | . . . Crushed . | . . . Highest Temperature . | . . . Average Temperature . | . . . Received Heat Transfer 18 | . . 18 Siege Activations . | . . . Martial Activations . | . . . Shielding Activations . | . . . Robots Disrupted . | . . . Combat Hostiles . | . . . Robots Corrupted . | . . . Combat Hostiles . | . . . Parts Fried . | . . . Impact Corruptions . | . . . Robots Melted . | . . . Combat Hostiles . | . . . Parts Melted . | . . . Heat Transferred 346 | . . 346 Parts Sabotaged . | . . . Parts Stolen . | . . . Parts Stripped . | . . . Power Chain Reactions 1 | . . 1 Alert | -11 -10 -10 ------- Run | Yrd Mat Sub Maximum Alert Level . | . . . Low Security (%) 100 | . 100 . Level 1 . | . . . Level 2 . | . . . Level 3 . | . . . Level 4 . | . . . Level 5 . | . . . High Security . | . . . Max Security . | . . . Peak Influence . | . . . Initial . | . . . Average . | . . . Influence Increases 95 | . . 95 Destroy 0b10 Robot/C 20 | . . 20 Lose Combat Pursuer 75 | . . 75 Influence Decreases 66 | . . 66 Time Decay 36 | . . 36 Lost Part 30 | . . 30 Squads Dispatched . | . . . Investigation . | . . . Extermination . | . . . Reinforcement . | . . . Assault . | . . . Garrison . | . . . Intercept . | . . . Searches Triggered . | . . . Construction Impeded . | . . . Haulers Reinforced . | . . . Active Scanning Responses . | . . . Cargo Convoy Interrupts . | . . . Stealth | -11 -10 -10 --------- Run | Yrd Mat Sub Distress Signals . | . . . Communications Jammed . | . . . Distress Signals . | . . . Times Spotted 21 | . . 21 Peak Tracking Total 6 | . . 6 Tactical Retreats 2 | . . 2 Traps | -11 -10 -10 ------- Run | Yrd Mat Sub Traps Triggered 2 | . . 2 Indirectly . | . . . Trap Hack Attempts . | . . . Triggered . | . . . Disarmed . | . . . Reprogrammed . | . . . Reused . | . . . Traps Extracted . | . . . Installed . | . . . Triggered . | . . . Machines | -11 -10 -10 ---------- Run | Yrd Mat Sub Machines Disabled . | . . . Max in Single Turn . | . . . Machines Repaired . | . . . Machines Dismantled . | . . . Machines Sabotaged . | . . . Overloaded Fab Kills . | . . . Hacking | -11 -10 -10 --------- Run | Yrd Mat Sub Machines Accessed 1 | . . 1 Terminals . | . . . Fabricators . | . . . Repair Stations . | . . . Recycling Units . | . . . Scanalyzers . | . . . Garrison Access . | . . . Total Hacks 3 | . . 3 Successful 3 | . . 3 Failed . | . . . Catastrophic . | . . . Database Lockouts . | . . . Manual . | . . . Terminals . | . . . Fabricators . | . . . Repair Stations . | . . . Recycling Units . | . . . Scanalyzers . | . . . Garrison Access . | . . . Terminal Hacks 3 | . . 3 Record 3 | . . 3 Fabricator Hacks . | . . . Repair Station Hacks . | . . . Recycling Unit Hacks . | . . . Scanalyzer . | . . . Garrison Access Hacks . | . . . Unauthorized Hacks . | . . . Terminals . | . . . Fabricators . | . . . Repair Stations . | . . . Recycling Units . | . . . Scanalyzers . | . . . Garrison Access . | . . . Data Cores Recovered . | . . . Used . | . . . Hacking Detections . | . . . Full Trace Events . | . . . Feedback Events . | . . . Feedback Blocked . | . . . Robot Schematics Acquired . | . . . Robots Built . | . . . Authchips . | . . . Time . | . . . Total Robot Build Rating . | . . . Part Schematics Acquired . | . . . Parts Built . | . . . Authchips . | . . . Time . | . . . Total Part Build Rating . | . . . Parts Repaired . | . . . Time . | . . . Parts Recycled . | . . . Recycled Matter . | . . . Retrieved Matter . | . . . Retrieved Components . | . . . Parts Scanalyzed . | . . . Part Schematics Acquired . | . . . Parts Damaged . | . . . Bothacking | -11 -10 -10 ------------ Run | Yrd Mat Sub Used RIF Installer . | . . . Robots Hacked . | . . . Non-combat . | . . . Combat . | . . . Robot Hacks Applied . | . . . Relay Couplers Released . | . . . Fabnet Peak Effective % . | . . . Robots Rewired . | . . . Allies Hacked . | . . . Hacks Repelled . | . . . Allies | -11 -10 -10 -------- Run | Yrd Mat Sub Total Allies . | . . . Largest Group . | . . . Highest-Rated Group . | . . . Highest-Rated Ally . | . . . Total Orders . | . . . Ally Attacks . | . . . Total Damage . | . . . Kills . | . . . Allies Corrupted . | . . . Allies Melted . | . . . Intel | -11 -10 -10 ------- Run | Yrd Mat Sub Active Infowar (turns) . | . . . Robot Analysis Total . | . . . Derelict Logs Recovered 2 | . . 2 Drone Launches . | . . . Drone Recoveries . | . . . Exploration | -11 -10 -10 ------------- Run | Yrd Mat Sub Turns Passed 3506 | . 135 3371 Spaces Moved 1424 | 1 79 1344 Core . | . . . Treads 1155 | . . 1155 Legs 269 | 1 79 189 Wheels . | . . . Hover . | . . . Flight . | . . . Fastest Speed 120 | 120 120 120 Average Speed 224 | 120 120 231 Slowest Speed 250 | 120 120 250 Overloaded Moves . | . . . Propulsion Burnouts . | . . . Robots Hopped . | . . . Potential Cave-ins . | . . . Cave-ins Triggered . | . . . Exploration Rate (%) 33 | 2 20 78 Regions Visited 2 Branch Regions 1 Pre-discovered Areas 3 | . . 3 Known Exits Taken . | . . . Unknown Exits Taken 2 | 1 1 . Scrap Searched 3 | . . 3 Spaces Dug . | . . . Terrain Destroyed 4 | . . 4 Melee . | . . . Projectile 1 | . . 1 AOE 3 | . . 3 Terrain Rammed . | . . . Walls Destroyed . | . . . Machines Disabled . | . . . Actions | -11 -10 -10 --------- Run | Yrd Mat Sub Total 1652 | . 115 1537 Wait 152 | . 35 117 Move 1422 | . 78 1344 Hop . | . . . Pick Up 22 | . . 22 Fast Attach 1 | . . 1 Attach 3 | . . 3 Detach . | . . . Swap 8 | . . 8 Drop 5 | . . 5 Fire 39 | . 2 37 Melee . | . . . Ram . | . . . Kick . | . . . Crush . | . . . Escape Stasis . | . . . Rewire . | . . . Trap . | . . . Miscellaneous . | . . . Route ------- -11/Scrapyard -10/Materials (discovered 2 exits: [*Min] / *Sub) -10/Subcaves (discovered 3 exits: [*Mat x2] / [*Scr]) History --------- Turn | Location | Event 1 | -11/Scrapyard | Discovered new exit (range 0) 1 | -11/Scrapyard | Entered Materials 2 | -10/Materials | Met a group of wandering Federalists 50 | -10/Materials | Discovered new exit (range 16) 103 | -10/Materials | Discovered new exit (range 5) 136 | -10/Materials | Entered Subcaves 136 | -10/Subcaves | Accompanied by 1 ally 137 | -10/Subcaves | Continued accompanying wandering Federalists (6) 137 | -10/Subcaves | Approached by a straggling Scientist 217 | -10/Subcaves | Shifting Twisted Machinery released Riot Gun 241 | -10/Subcaves | Shifting Twisted Machinery released Battle Cannon 266 | -10/Subcaves | Shifting Twisted Machinery released Riot Gun 269 | -10/Subcaves | Ambushed by Subdwellers from Twisted Machinery 272 | -10/Subcaves | Shifting Twisted Machinery released Lgt. Humpback 305 | -10/Subcaves | Build established: Mutant 349 | -10/Subcaves | Wandering Federalist uncovered a shortcut to Scraptown 593 | -10/Subcaves | Disturbed a concealed Subdweller 826 | -10/Subcaves | Learned location of Zion (-7) 826 | -10/Subcaves | Met a Zionite searching for "candidates" 1218 | -10/Subcaves | Discovered new exit (range 7) 1274 | -10/Subcaves | Discovered new exit (range 15) 1526 | -10/Subcaves | Shifting Twisted Machinery released Mak. Thermal Plating 1946 | -10/Subcaves | Visited Clippyterm 1953 | -10/Subcaves | Learned location of Extension (-6) 2506 | -10/Subcaves | A Subdweller sparked back to life 2506 | -10/Subcaves | A Subdweller sparked back to life 2506 | -10/Subcaves | A Subdweller sparked back to life 2589 | -10/Subcaves | Found Prototype Leg 3155 | -10/Subcaves | Learned location of Storage (-8) 3468 | -10/Subcaves | Ambushed by research squad 3468 | -10/Subcaves | Core integrity fell below 50% 3496 | -10/Subcaves | Core integrity fell below 20% 3507 | -10/Subcaves | Destroyed by H-55 Commando with Gauss Rifle Last Messages --------------- 03489_ P-60 Hacker destroyed. 03491_ Acquired 11 matter. 03493_ System corrupted: Matter fused (-5). 03493_ Acquired 5 matter. 03495_ Acquired 4 matter. 03495_ Slug penetrates H-55 Commando. 03495_ Penetrated by Slug. 03498_ Acquired 10 matter. 03498_ Penetrated by Slug. 03498_ Sub. Machine Gun destroyed. 03500_ Imp. Heat Sink fries itself beyond repair. 03501_ Slug penetrates Wall. 03502_ Acquired 4 matter. 03502_ Remote Datajack fries itself beyond repair. 03504_ Slug penetrates Wall. 03504_ Penetrated by Slug. 03505_ Mic. Nuclear Core fries itself beyond repair. 03505_ Chain reaction triggered in Lgt. Nuclear Core. 03505_ H-55 Commando destroyed. 03507_ Penetrated by Slug. Map ----- +----------------------------------------------------+ | ????????????????????????????????????????? | | ????????????????????????????????????????? | | ????????????????????????????????????????? | | ????????????????????????????????????????? | | ????????????????????????????????????????? | | ????????????????????????????????????????? | | ????????????????????????????????????????? | | ????????????????????????????????????????? | | ????????????????????????????????????????? | | ???????????????????????????????????? " | | ???????????????????????????????????? """ | | ????????????????????????????????????? | | ?????????????????????????????????????? | | ?????????????????????????????????????? | | ??????????????????????????????????????? | | ???????????????????????????????????????? | | ????????????????????????????????????????# | | ???????????????????###?????????????????## | | ???????????????????""#"???????????????## | | ????????????#######"""""????????##????# | | ????????????# """"""""??????# ????# | | ????????????# """""" ??????# #????? | | ????????????# h """"" ?????# ##??# | | ????????????##;;% #???????# ### | | ??????????????#; ## ##???????# | | ??????????????##@ ##??? ##??????# | | ??????????????# ##???? #####??## | | ??????????????## ###??? # ##### | | ???????????????## #### # | | ????????????????## ## | | ?????????????????## ## ## ### | | ??????????????????# ##??? #?## | | ?????????????????## ##???# #??# | | ?????????????????# # ##?## ??# | | ?????????????????# ## # ### ???# | | ?????????????????##### ## ##??## | | ????????????????????## ## %#???## | | ???????????????????## # %####?? | | ????????????????#### ## ##? | | ????????????????# ## ## | | ????????????????### # #### | | ??????????????????## ## | | ???????????????????## ## %% | | ????????????????????# ##### ####### | | ????????????????????###???####?????## ## | | ????????????????????????????????????####? | | ????????????????????????????????????????? | | ????????????????????????????????????????? | | ????????????????????????????????????????? | | ????????????????????????????????????????? | +----------------------------------------------------+ Best States ------------- Heat Dissipation 25 Energy Generation 10 Energy Capacity 250 Matter Stores 300 Matter Capacity 300 Sight Range 16 Terrain Scan Density 10 Evasion (%) 55 Recoil Reduction 2 Item Schematics ----------------- None Robot Schematics ------------------ None Fabricated ------------ Nothing Repaired ---------- Nothing Alien Tech Used ----------------- None Achievements -------------- None Challenges ------------ None Game ------ Seed DisassembledSigixScythe Manual? 0 Play Time 00:10:07 Cumulative 411.4 hours Start 2025.08.15 @ 22:55:50 End 2025.08.15 @ 23:04:16 Sessions 1 Manual Loads 0 Difficulty Rogue Special Mode None Game No. 526 Rogue 526 Adventurer 0 Explorer 0 Win Type - Total 32 Types 16/1/9/1/1/1/0/1/1/1 Lore% 88 Gallery% 83 Achievement% 77 Wizard Run 0 Options --------- Layout 0 ASCII 0 Keyboard 0 Movement Numpad Keybinds 0 Fullscreen 1 Font 18/SmallcapsGlow Map View 76x50 Zoom Use 0% Tactical HUD 1 Map Filters NONE Filters NONE Steam 1 RUN: a84e7a94-8f82-46fe-bec3-1cb1ec2345a9